bitfinex/quotes_ETHUSD_20250323
["timestamp","ask_amount","ask_price","bid_price","bid_amount"]
[1742715646762,4.98507,2006.0,2005.9,0.31825224]
[1742715647066,4.98507,2006.0,2005.8,4.598]
[1742715647266,4.98507,2006.0,2005.9,0.31825224]
[1742715647565,4.98507,2006.0,2005.8,4.598]
[1742715647763,4.98507,2006.0,2005.9,0.31825224]
[1742715647940,8.29109772,2006.0,2005.9,0.31825224]
[1742715648142,8.29109772,2006.0,2005.8,4.598]
[1742715648341,6.49764864,2006.0,2005.9,0.31825224]
[1742715648764,6.49764864,2006.0,2005.8,4.598]
[1742715648965,6.49764864,2006.0,2005.9,0.31825224]
[1742715649182,4.98507,2006.0,2005.9,0.31825224]
[1742715649343,4.98507,2006.0,2005.8,4.598]
[1742715649545,4.98507,2006.0,2005.9,0.31825224]
[1742715649887,4.98507,2006.0,2005.8,4.598]
[1742715650051,4.98507,2006.0,2005.9,0.31825224]
[1742715650377,4.98507,2006.0,2005.8,4.598]
[1742715650585,4.98507,2006.0,2005.9,0.31825224]
[1742715650873,4.98507,2006.0,2005.8,4.598]
[1742715651039,4.98507,2006.0,2005.9,0.31825224]
[1742715651240,10.32736864,2006.1,2005.8,4.598]
[1742715651452,7.98499,2006.1,2005.9,0.31825224]
[1742715651784,7.98489,2006.1,2005.8,4.598]
[1742715651980,6.14,2006.2,2006.0,0.31825224]
[1742715652182,6.14,2006.2,2005.9,5.81556]
[1742715652363,9.14,2006.2,2006.1,0.31825224]
[1742715652564,9.14,2006.2,2005.9,5.81558]
[1742715652565,6.14,2006.2,2005.9,5.81558]
[1742715652873,6.49692864,2006.3,2005.9,5.81558]
[1742715653085,6.49692864,2006.3,2006.0,0.31825224]
[1742715654281,4.98454,2006.2,2006.0,0.31825224]
[1742715656285,4.9841,2006.4,2006.1,0.7627]
[1742715656472,3.0,2006.5,2006.1,1.08023616]
[1742715656880,7.98393,2006.5,2006.2,4.592]
[1742715657190,7.98393,2006.5,2006.2,4.90891551]
[1742715657389,9.49650864,2006.5,2006.2,4.90891551]
[1742715658094,0.7979,2006.6,2006.2,5.48593288]
[1742715658293,4.98333,2006.7,2006.3,5.7469]
[1742715658454,11.47934864,2006.7,2006.3,5.7469]
[1742715658659,11.47934864,2006.7,2006.4,0.31691551]
[1742715658899,6.49590864,2006.7,2006.3,5.7469]
[1742715659102,6.49590864,2006.7,2006.5,0.31648587]
[1742715659401,6.49590864,2006.7,2006.3,5.7469]
[1742715659701,3.0,2006.7,2006.3,10.7311]
[1742715659862,4.51257864,2006.7,2006.4,0.31648587]
[1742715660061,4.51257864,2006.7,2006.3,5.7469]
[1742715660383,9.49589864,2006.7,2006.5,0.31648587]
[1742715660583,9.49589864,2006.7,2006.3,5.7469]
[1742715660782,9.49589864,2006.7,2006.6,0.31648587]
[1742715660986,9.49589864,2006.7,2006.3,0.7627]
[1742715661301,14.47941864,2006.7,2006.3,0.7627]
[1742715661485,14.47941864,2006.7,2006.4,0.31648587]
[1742715661689,14.47941864,2006.7,2006.3,0.7627]
[1742715661865,4.98358,2006.6,2006.5,0.31648587]
[1742715662195,6.49615864,2006.6,2006.3,0.7627]
[1742715662399,1.51257864,2006.6,2006.5,0.31648587]
[1742715662597,1.51257864,2006.6,2006.3,5.74699]
[1742715662762,1.51257864,2006.6,2006.5,0.31648587]
[1742715662964,1.51257864,2006.6,2006.4,0.31505404]
[1742715663263,14.47940864,2006.7,2006.5,0.3151972]
[1742715663463,14.47940864,2006.7,2006.3,5.74699]
[1742715663693,6.49615864,2006.6,2006.3,0.7627]
[1742715665197,11.47982864,2006.6,2006.3,0.7627]
[1742715665498,6.49615864,2006.6,2006.3,0.7627]
[1742715666604,11.47982864,2006.6,2006.3,0.7627]
[1742715666901,6.49615864,2006.6,2006.3,0.7627]
[1742715667394,7.98331,2006.7,2006.2,4.592]
[1742715667395,1.51257864,2006.5,2006.2,4.592]
[1742715667585,6.49664864,2006.4,2006.1,0.7613]
[1742715667791,6.49664864,2006.4,2006.2,4.593]
[1742715668893,6.49664864,2006.4,2006.0,4.98489]
[1742715669197,6.49664864,2006.4,2006.2,4.592]
[1742715673103,6.49664864,2006.4,2006.3,0.31371754]
[1742715680708,6.49644864,2006.5,2006.3,0.31371754]
[1742715682419,1.51257864,2006.4,2006.3,0.31371754]
[1742715684920,6.49662864,2006.4,2006.3,0.31371754]
[1742715685116,7.6446785,2006.4,2006.3,0.31371754]
[1742715692515,4.98452,2006.3,2006.1,4.586]
[1742715692719,1.51257864,2006.2,2006.0,4.586]
[1742715692919,6.49711864,2006.2,2006.0,4.586]
[1742715693432,6.49711864,2006.2,2005.9,31.33812]
[1742715693633,6.49742864,2006.1,2006.0,4.586]
[1742715695659,1.51257864,2006.1,2006.0,4.586]
[1742715695970,6.49715864,2006.2,2006.0,4.586]
[1742715698073,4.51257864,2006.4,2006.0,5.16301737]
[1742715698270,6.14,2006.5,2006.2,4.98444]
[1742715698432,11.12382,2006.5,2006.1,4.98458]
[1742715699132,12.63639864,2006.5,2006.1,4.98458]
[1742715700377,12.63639864,2006.5,2006.1,9.96919]
[1742715701676,6.14,2006.5,2006.2,4.98454]
[1742715701965,6.14,2006.5,2006.3,4.9842]
[1742715702169,6.14,2006.5,2006.4,4.592]
[1742715702669,6.49587864,2006.7,2006.4,4.592]
[1742715703368,6.49587864,2006.7,2006.5,0.28613885]
[1742715703935,1.51257864,2006.6,2006.5,0.28613885]
[1742715706164,6.49587864,2006.7,2006.5,0.28613885]
[1742715706542,1.51257864,2006.7,2006.5,0.28613885]
[1742715706749,6.49569864,2006.8,2006.5,0.28613885]
[1742715707471,6.49569864,2006.8,2006.5,5.26992885]
[1742715707647,3.0,2006.8,2006.5,5.26992885]
[1742715708968,4.51257864,2006.8,2006.5,5.26992885]
[1742715711676,9.49564864,2006.8,2006.5,5.26992885]
[1742715712983,1.51257864,2006.7,2006.5,5.26992885]
[1742715713481,1.51257864,2006.7,2006.5,0.28613885]
[1742715714174,6.49593864,2006.7,2006.5,0.28613885]
[1742715714958,6.49612864,2006.6,2006.5,0.28613885]
[1742715715164,6.49612864,2006.6,2006.5,4.589]
[1742715715460,6.49612864,2006.6,2006.5,4.87513885]
[1742715718186,4.98355,2006.6,2006.5,4.87513885]
[1742715723865,6.49612864,2006.6,2006.5,4.87513885]
[1742715731903,4.98355,2006.6,2006.5,4.87513885]
[1742715735004,6.49612864,2006.6,2006.5,4.87513885]
[1742715746831,4.98355,2006.6,2006.5,4.87513885]
[1742715748328,7.98306,2006.8,2006.5,5.64643885]
[1742715748513,11.12257,2007.0,2006.5,9.85892885]
[1742715748829,11.12257,2007.0,2006.6,5.75476]
[1742715749028,6.14,2007.0,2006.6,7.26728864]
[1742715749225,6.14,2007.0,2006.7,5.26873084]
[1742715750941,7.65257864,2007.0,2006.7,5.26873084]
[1742715752119,6.14,2007.0,2006.7,5.26873084]
[1742715752316,6.14,2007.0,2006.8,4.9829]
[1742715752537,1.51257864,2007.1,2006.8,4.9829]
[1742715752748,6.49493864,2007.1,2006.9,0.28547084]
[1742715753048,6.49493864,2007.1,2006.7,4.98319]
[1742715753211,6.49493864,2007.1,2007.0,0.28547084]
[1742715753708,6.49493864,2007.1,2006.7,4.98319]
[1742715754041,6.49493864,2007.1,2006.8,0.28547084]
[1742715758852,1.51257864,2007.2,2006.9,9.5658]
[1742715759162,1.51257864,2007.2,2007.0,0.28370575]
[1742715761712,7.31722864,2007.3,2007.0,0.28370575]
[1742715765169,1.51257864,2007.2,2007.0,0.28370575]
[1742715765865,7.31722864,2007.3,2007.0,0.28370575]
[1742715766184,6.49452864,2007.3,2007.0,0.28370575]
[1742715766578,6.49452864,2007.3,2007.0,5.26623575]
[1742715769364,6.49452864,2007.3,2007.0,0.28370575]
[1742715769757,1.51257864,2007.2,2007.0,0.28370575]
[1742715778175,7.29212864,2007.3,2007.0,0.28370575]
[1742715780784,9.0566376,2007.3,2007.0,0.28370575]
[1742715789618,7.54405896,2007.3,2007.0,0.28370575]
[1742715794311,2.56210896,2007.3,2007.0,5.26612575]
[1742715794479,0.7976,2007.3,2007.0,5.26612575]
[1742715794675,9.14,2007.5,2007.2,4.9819]
[1742715794886,7.29890864,2007.9,2007.5,4.98127]
[1742715795093,4.84189786,2007.8,2007.5,4.98127]
[1742715795288,4.84189786,2007.8,2007.6,0.2802716]
[1742715796709,9.82247786,2007.8,2007.6,0.2802716]
[1742715797233,7.98058,2007.8,2007.6,0.2802716]
[1742715801220,7.98058,2007.8,2007.7,0.2785551]
[1742715801418,7.98058,2007.8,2007.4,7.26058864]
[1742715801606,7.98058,2007.8,2007.5,0.2785551]
[1742715803614,7.98058,2007.8,2007.5,6.77243374]
[1742715803922,7.98058,2007.8,2007.5,5.2598551]
[1742715804109,3.0,2007.8,2007.5,5.2598551]
[1742715804521,3.0,2007.8,2007.5,6.77243374]
[1742715805722,7.98059,2007.8,2007.5,5.2598551]
[1742715807885,12.96128,2007.8,2007.5,0.2785551]
[1742715808126,4.98082,2007.7,2007.5,0.2785551]
[1742715809125,7.98064,2007.8,2007.5,0.2785551]
[1742715812317,4.98107,2007.6,2007.5,0.2785551]
[1742715812522,4.98107,2007.6,2007.5,4.8555551]
[1742715812725,4.98107,2007.6,2007.5,4.577]
[1742715813035,4.98107,2007.6,2007.5,4.8539341]
[1742715813328,0.7721,2007.9,2007.5,4.8539341]
[1742715813520,8.75251,2007.9,2007.5,10.6337341]
[1742715813702,8.75251,2007.9,2007.5,12.14631274]
[1742715814732,13.73305,2007.9,2007.5,12.14631274]
[1742715814907,13.73298,2007.9,2007.5,12.14631274]
[1742715815111,13.73295,2007.9,2007.5,12.14631274]
[1742715815324,13.73304,2007.9,2007.5,12.14631274]
[1742715815518,4.98057,2007.8,2007.5,7.16521274]
[1742715816433,4.98057,2007.8,2007.5,12.14652274]
[1742715817430,4.98057,2007.8,2007.6,1.51257864]
[1742715817637,4.98057,2007.8,2007.5,11.86958864]
[1742715817840,4.98057,2007.8,2007.7,0.2769341]
[1742715818133,4.98057,2007.8,2007.5,11.86958864]
[1742715818336,4.98057,2007.8,2007.7,0.2769341]
[1742715818519,9.96197,2007.7,2007.5,4.577]
[1742715818719,10.73407,2007.7,2007.5,4.577]
[1742715819406,5.75304,2007.7,2007.5,4.577]
[1742715823039,0.7721,2007.7,2007.5,4.577]
[1742715823241,0.7721,2007.7,2007.6,0.2769341]
[1742715824230,5.75292,2007.7,2007.6,0.2769341]
[1742715825252,0.7721,2007.7,2007.6,0.2769341]
[1742715826954,5.75292,2007.7,2007.6,0.2769341]
[1742715828152,7.26549864,2007.7,2007.6,0.2769341]
[1742715828345,8.4901125,2007.7,2007.6,0.2769341]
[1742715829556,6.97753386,2007.7,2007.6,0.2769341]
[1742715833037,8.4901125,2007.7,2007.6,0.2769341]
[1742715833576,6.97753386,2007.7,2007.6,0.2769341]
[1742715839857,1.99671386,2007.7,2007.6,0.2769341]
[1742715840063,0.7721,2007.7,2007.6,0.2769341]
[1742715841852,4.98064,2007.8,2007.6,0.2769341]
[1742715842369,6.14,2007.9,2007.6,0.2769341]
[1742715842864,7.65257864,2007.9,2007.6,0.2769341]
[1742715843161,12.63299864,2007.9,2007.6,0.2769341]
[1742715843364,4.9806,2007.8,2007.6,0.2769341]
[1742715843665,2.26297864,2007.7,2007.6,0.2769341]
[1742715844378,7.24379864,2007.7,2007.6,0.2769341]
[1742715844582,5.73122,2007.7,2007.6,0.2769341]
[1742715844785,7.24379864,2007.7,2007.6,0.2769341]
[1742715844951,9.20166891,2007.7,2007.6,0.2769341]
[1742715852281,9.20166891,2007.7,2007.3,4.577]
[1742715852579,7.24379864,2007.7,2007.4,0.27712476]
[1742715853258,12.22484864,2007.7,2007.4,0.27712476]
[1742715854042,7.24379864,2007.7,2007.4,0.27712476]
[1742715855979,12.22482864,2007.7,2007.4,0.27712476]
[1742715857682,4.98111,2007.6,2007.4,0.27712476]
[1742715858383,7.35430408,2007.9,2007.5,10.73237]
[1742715858384,11.12048,2007.9,2007.5,10.73237]
[1742715858981,11.12048,2007.9,2007.6,0.27712476]
[1742715859383,12.63305864,2007.9,2007.6,0.27712476]
[1742715859762,11.12048,2007.9,2007.6,0.27712476]
[1742715859972,6.49316864,2007.8,2007.6,0.27712476]
[1742715860172,8.3348535,2007.8,2007.6,0.27712476]
[1742715861752,6.82227486,2007.8,2007.6,0.27712476]
[1742715865270,4.98059,2007.8,2007.6,0.27712476]
[1742715865472,6.14,2007.9,2007.6,0.27712476]
[1742715865883,11.12035,2007.9,2007.6,5.25795476]
[1742715869291,11.12035,2007.9,2007.6,0.27712476]
[1742715872013,4.9806,2007.8,2007.6,0.27712476]
[1742715876581,7.65257864,2007.9,2007.6,0.27712476]
[1742715876582,11.12039,2007.9,2007.6,0.27712476]
[1742715878911,6.14,2007.9,2007.6,5.25813476]
[1742715881424,16.10048,2008.0,2007.6,5.25813476]
[1742715881595,3.0,2007.9,2007.6,5.25813476]
[1742715886400,3.0,2007.9,2007.7,0.8191]
[1742715886825,3.0,2007.9,2007.8,0.2765051]
[1742715887225,7.98032,2007.9,2007.8,0.2765051]
[1742715887749,7.98032,2007.9,2007.5,7.30898864]
[1742715887905,7.98032,2007.9,2007.6,0.2765051]
[1742715890355,8.0227538,2007.9,2007.6,0.2765051]
[1742715891938,4.98058,2007.8,2007.6,0.2765051]
[1742715892136,4.98082,2007.7,2007.6,0.2765051]
[1742715892339,5.0232538,2007.7,2007.6,0.2765051]
[1742715892710,6.53583244,2007.7,2007.6,0.2765051]
[1742715893103,4.98107,2007.6,2007.4,30.913]
[1742715893304,5.0235038,2007.6,2007.5,0.27631443]
[1742715897128,6.53608244,2007.6,2007.5,0.27631443]
[1742715897440,6.25115404,2007.6,2007.5,0.27631443]
[1742715898406,5.0235038,2007.6,2007.5,0.27631443]
[1742715906845,5.0235038,2007.6,2007.5,0.22631443]
[1742715911657,0.0424338,2007.6,2007.5,0.22631443]
[1742715915167,6.53608244,2007.6,2007.5,0.22631443]
[1742715915362,5.0235038,2007.6,2007.5,0.22631443]
[1742715926471,5.0235038,2007.6,2007.5,0.17631443]
[1742715926671,5.0235038,2007.6,2007.5,0.26860076]
[1742715927171,6.25116604,2007.6,2007.5,0.26860076]
[1742715927368,7.76374468,2007.6,2007.5,0.26860076]
[1742715927672,6.25116604,2007.6,2007.5,0.26860076]
[1742715929669,6.25116604,2007.6,2007.5,0.26860076]
[1742715929843,7.08156604,2007.6,2007.5,0.26860076]
[1742715931671,7.08156604,2007.6,2007.5,0.55304722]
[1742715944188,6.25116604,2007.6,2007.5,0.55304722]
[1742715954401,0.0424338,2007.6,2007.5,0.55304722]
[1742715955097,0.0424338,2007.6,2007.5,1.35124722]
[1742715960642,0.0424338,2007.6,2007.5,0.55304722]
[1742715960936,5.0235038,2007.6,2007.5,0.55304722]
[1742715962589,5.0235038,2007.6,2007.5,0.50304722]
[1742715964436,5.0235038,2007.6,2007.5,0.45304722]
[1742715967838,5.0235038,2007.6,2007.5,0.53795191]
[1742715969460,6.25061704,2007.6,2007.5,0.53795191]
[1742715972348,7.00481704,2007.6,2007.5,0.53795191]
[1742715972774,12.33348316,2007.6,2007.5,0.53795191]
[1742715972971,13.02997432,2007.6,2007.5,0.44566558]
[1742715973176,4.98206,2007.2,2007.1,30.916]
[1742715977282,6.20936924,2007.2,2007.1,30.916]
[1742715977688,6.20936924,2007.2,2007.1,4.577]
[1742715979110,4.98239,2007.1,2006.9,5.3318]
[1742715980605,4.98256,2007.0,2006.9,5.3318]
[1742715982406,4.98239,2007.1,2006.9,5.3318]
[1742715984522,4.98256,2007.0,2006.9,5.3318]
[1742715984725,4.98256,2007.0,2006.9,4.577]
[1742715984923,4.98256,2007.0,2006.7,28.65997864]
[1742715985222,4.98256,2007.0,2006.9,4.578]
[1742715985382,6.18190592,2007.0,2006.9,4.578]
[1742715988252,6.18190592,2007.0,2006.9,5.07188522]
[1742715988422,4.98256,2007.0,2006.9,5.07188522]
[1742715999274,4.98239,2007.1,2006.9,6.58446386]
[1742715999839,4.98256,2007.0,2006.9,6.58446386]
[1742716002773,4.98239,2007.1,2006.9,6.58446386]
[1742716003476,9.9649,2007.1,2006.9,6.58446386]
[1742716004081,4.98256,2007.0,2006.9,6.58446386]
[1742716007393,4.98256,2007.0,2006.9,5.07188522]
[1742716009301,4.98234,2007.1,2006.9,5.07188522]
[1742716009799,12.34938924,2007.2,2006.9,7.37006386]
[1742716010097,11.12208,2007.2,2006.9,7.37006386]
[1742716013404,16.10435,2007.2,2006.9,7.37006386]
[1742716013583,9.96435,2007.2,2006.9,7.37006386]
[1742716016008,4.98208,2007.2,2006.9,7.37006386]
[1742716020415,4.98232,2007.1,2006.9,7.37006386]
[1742716022416,4.98232,2007.1,2006.9,5.85748522]
[1742716026421,4.98232,2007.1,2006.9,7.37006386]
[1742716027788,4.98232,2007.1,2006.9,5.85748522]
[1742716028507,4.98232,2007.1,2006.9,5.07188522]
[1742716028508,4.98256,2007.0,2006.9,5.07188522]
[1742716029387,5.74246,2007.0,2006.9,5.07188522]
[1742716033430,5.74246,2007.0,2006.9,0.49388522]
[1742716033599,10.72525,2007.0,2006.8,4.578]
[1742716033799,5.74246,2007.0,2006.9,0.49312597]
[1742716033995,4.9828,2006.9,2006.8,4.578]
[1742716034202,4.9828,2006.9,2006.8,5.07112597]
[1742716066691,0.61437352,2007.1,2006.8,6.58370461]
[1742716066889,7.98246,2007.1,2006.8,7.37020461]
[1742716067193,7.98246,2007.1,2006.9,1.51257864]
[1742716067559,7.98231,2007.1,2007.0,0.49530861]
[1742716068165,4.98258,2007.0,2006.8,6.87707864]
[1742716068361,4.98258,2007.0,2006.9,0.49530861]
[1742716068559,4.98258,2007.0,2006.8,6.87707864]
[1742716068779,4.98258,2007.0,2006.9,0.49530861]
[1742716069196,4.98258,2007.0,2006.8,6.87707864]
[1742716069374,4.98258,2007.0,2006.9,0.49530861]
[1742716069775,4.98258,2007.0,2006.8,6.87707864]
[1742716069978,4.98258,2007.0,2006.9,0.49530861]
[1742716070398,4.98258,2007.0,2006.8,6.87707864]
[1742716070575,4.98258,2007.0,2006.9,0.49530861]
[1742716070977,4.98258,2007.0,2006.8,6.87707864]
[1742716071299,4.98258,2007.0,2006.9,0.49530861]
[1742716071684,4.98258,2007.0,2006.8,6.87707864]
[1742716071887,4.98258,2007.0,2006.9,0.49530861]
[1742716072289,4.98258,2007.0,2006.8,6.87707864]
[1742716072491,4.98258,2007.0,2006.9,0.49530861]
[1742716073201,4.98258,2007.0,2006.8,6.87707864]
[1742716073502,4.98258,2007.0,2006.9,0.49530861]
[1742716073802,4.98258,2007.0,2006.8,6.87707864]
[1742716074003,4.98258,2007.0,2006.9,0.49530861]
[1742716074507,4.98258,2007.0,2006.8,6.87707864]
[1742716074682,4.98258,2007.0,2006.9,0.49492902]
[1742716075381,4.98258,2007.0,2006.8,6.87707864]
[1742716075728,4.98258,2007.0,2006.9,0.49492902]
[1742716076079,4.98258,2007.0,2006.8,6.87707864]
[1742716076276,4.98258,2007.0,2006.9,0.49492902]
[1742716076579,4.98258,2007.0,2006.8,6.87707864]
[1742716076774,4.98258,2007.0,2006.9,0.49492902]
[1742716077099,4.98258,2007.0,2006.8,6.87707864]
[1742716077303,4.98258,2007.0,2006.9,0.49492902]
[1742716077683,4.98258,2007.0,2006.8,6.87707864]
[1742716077885,4.98258,2007.0,2006.9,0.49492902]
[1742716078303,4.98258,2007.0,2006.8,6.87707864]
[1742716078503,4.98258,2007.0,2006.9,0.49492902]
[1742716078909,4.98258,2007.0,2006.8,6.87707864]
[1742716079069,4.98258,2007.0,2006.9,0.49492902]
[1742716079403,4.98258,2007.0,2006.8,6.87707864]
[1742716079604,4.98258,2007.0,2006.9,0.49492902]
[1742716080007,4.98258,2007.0,2006.8,6.87707864]
[1742716080212,4.98258,2007.0,2006.9,0.49492902]
[1742716081008,4.98258,2007.0,2006.8,6.87707864]
[1742716081312,4.98258,2007.0,2006.9,0.49492902]
[1742716081634,4.98258,2007.0,2006.8,6.87707864]
[1742716081780,4.98258,2007.0,2006.9,0.49492902]
[1742716081973,4.98258,2007.0,2006.8,6.87707864]
[1742716082178,4.98258,2007.0,2006.9,0.49492902]
[1742716082498,4.98258,2007.0,2006.8,6.87707864]
[1742716082710,4.98258,2007.0,2006.9,0.49492902]
[1742716083017,4.98258,2007.0,2006.8,6.87707864]
[1742716083182,4.98258,2007.0,2006.9,0.49492902]
[1742716083509,4.98258,2007.0,2006.8,6.87707864]
[1742716083722,4.98258,2007.0,2006.9,0.49492902]
[1742716084007,4.98258,2007.0,2006.8,6.87707864]
[1742716084186,4.98258,2007.0,2006.9,0.49492902]
[1742716084386,4.98258,2007.0,2006.8,6.87707864]
[1742716084609,4.98258,2007.0,2006.9,0.49492902]
[1742716085010,4.98258,2007.0,2006.8,6.87707864]
[1742716085211,4.98258,2007.0,2006.9,0.49492902]
[1742716085613,4.98258,2007.0,2006.8,6.87707864]
[1742716085907,4.98258,2007.0,2006.9,0.49492902]
[1742716086221,4.98258,2007.0,2006.8,6.87707864]
[1742716086522,4.98258,2007.0,2006.9,0.49492902]
[1742716086812,4.98258,2007.0,2006.8,6.87707864]
[1742716087009,4.98258,2007.0,2006.9,0.49492902]
[1742716087487,4.98258,2007.0,2006.8,6.87707864]
[1742716087688,4.98258,2007.0,2006.9,0.49492902]
[1742716088222,4.98258,2007.0,2006.8,6.87707864]
[1742716088392,4.98258,2007.0,2006.9,0.49492902]
[1742716088593,4.98258,2007.0,2006.8,6.87707864]
[1742716088919,4.98258,2007.0,2006.9,0.49492902]
[1742716089220,4.98258,2007.0,2006.8,6.87707864]
[1742716089823,4.98258,2007.0,2006.9,0.49521369]
[1742716089990,4.98258,2007.0,2006.8,6.87707864]
[1742716090185,4.98258,2007.0,2006.9,0.49521369]
[1742716090390,4.98258,2007.0,2006.8,6.87707864]
[1742716090620,4.98258,2007.0,2006.9,0.49521369]
[1742716091024,4.98258,2007.0,2006.8,6.87707864]
[1742716091186,4.98258,2007.0,2006.9,0.49521369]
[1742716091391,4.9828,2006.9,2006.8,4.578]
[1742716091630,4.9828,2006.9,2006.8,5.07321369]
[1742716096028,4.98258,2007.0,2006.8,5.07321369]
[1742716101229,9.96534,2007.0,2006.8,5.07321369]
[1742716101592,4.98258,2007.0,2006.8,5.07321369]
[1742716104730,4.98231,2007.1,2006.8,5.07321369]
[1742716104936,4.98231,2007.1,2006.8,7.38069233]
[1742716108022,4.98231,2007.1,2006.9,1.51257864]
[1742716108225,4.98183,2007.3,2006.9,1.51257864]
[1742716108226,4.98207,2007.2,2007.0,0.49516627]
[1742716108403,7.98182,2007.3,2007.0,2.00774491]
[1742716108607,5.8228438,2007.4,2007.0,2.00774491]
[1742716108608,8.8228538,2007.4,2007.0,6.99029491]
[1742716108831,15.45900137,2007.4,2007.0,6.99029491]
[1742716109037,0.0424338,2007.4,2007.1,6.49479864]
[1742716109337,0.0424338,2007.4,2007.2,1.51257864]
[1742716109639,0.0424338,2007.4,2007.3,0.49516627]
[1742716110707,0.0424338,2007.4,2007.3,2.00774491]
[1742716110907,0.0424338,2007.4,2007.3,7.77385491]
[1742716113443,0.0424338,2007.4,2007.3,8.14549405]
[1742716126368,0.0424338,2007.4,2007.3,7.36119405]
[1742716135191,0.0424338,2007.4,2007.3,8.70629405]
[1742716140680,0.0424338,2007.4,2007.3,11.70629405]
[1742716152965,0.0424338,2007.4,2007.3,38.04129405]
[1742716186516,0.0424338,2007.4,2007.3,37.24619405]
[1742716209739,0.0424338,2007.4,2007.3,38.00019405]
[1742716209906,3.8e-06,2007.4,2007.3,39.51277269]
[1742716210112,0.7884,2008.3,2008.2,4.97958]
[1742716210439,0.01,2008.3,2008.2,11.55591677]
[1742716210610,0.01,2008.3,2008.2,13.61849541]
[1742716210940,0.01,2008.3,2008.2,16.61849541]
[1742716213746,0.01,2008.3,2008.2,17.62862059]
[1742716214246,0.01,2008.3,2008.2,18.00437957]
[1742716219047,0.01,2008.3,2008.2,16.49180093]
[1742716219346,0.01,2008.3,2008.2,15.48167575]
[1742716222052,0.01,2008.3,2008.2,16.99425439]
[1742716224040,0.01,2008.3,2008.2,17.74735439]
[1742716225933,0.01,2008.3,2008.2,16.23477575]
[1742716227227,0.01,2008.3,2008.2,17.74735439]
[1742716230149,0.005,2008.5,2008.4,7.25825864]
[1742716230346,0.005,2008.5,2008.4,34.13025864]
[1742716230521,0.005,2008.5,2008.4,34.6077885]
[1742716231662,0.005,2008.5,2008.4,34.81052631]
[1742716237234,1e-05,2008.5,2008.4,37.81052631]
[1742716242260,1e-05,2008.5,2008.4,43.06352631]
[1742716242570,1e-05,2008.5,2008.4,43.15457248]
[1742716244683,1e-05,2008.5,2008.4,37.90157248]
[1742716245644,0.8009,2009.2,2009.1,4.97735]
[1742716245976,0.8009,2009.2,2009.1,12.28844952]
[1742716247755,0.8009,2009.2,2009.1,12.66852946]
[1742716248448,0.9209673,2009.4,2009.3,5.52685]
[1742716248642,0.9209673,2009.4,2009.3,32.51909248]
[1742716249289,7.3e-06,2009.4,2009.3,37.79107112]
[1742716250162,7.3e-06,2009.4,2009.3,36.27849248]
[1742716250389,7.3e-06,2009.4,2009.3,37.79107112]
[1742716251892,7.3e-06,2009.4,2009.3,39.30364976]
[1742716253115,7.3e-06,2009.4,2009.3,38.79239582]
[1742716253658,7.3e-06,2009.4,2009.3,39.76510047]
[1742716254902,7.3e-06,2009.4,2009.3,43.95154729]
[1742716255105,7.3e-06,2009.4,2009.3,49.29555268]
[1742716257458,7.3e-06,2009.4,2009.3,52.29555268]
[1742716259562,0.8021,2010.2,2010.1,4.97487]
[1742716259868,0.8021,2010.2,2010.1,39.62668025]
[1742716262992,0.8021,2010.2,2010.1,39.99175474]
[1742716272782,0.8263,2010.4,2010.3,4.97438]
[1742716272974,0.8263,2010.4,2010.3,5.52438]
[1742716273170,0.8263,2010.4,2010.3,6.19092158]
[1742716273371,0.8263,2010.4,2010.3,1.21654158]
[1742716273565,0.8263,2010.4,2010.3,6.19092158]
[1742716273777,0.8263,2010.4,2010.3,32.49092158]
[1742716273995,0.8263,2010.4,2010.3,27.51654158]
[1742716274196,0.8263,2010.4,2010.3,32.11854158]
[1742716274968,0.8263,2010.4,2010.3,37.09292158]
[1742716278786,0.01,2010.4,2010.3,37.09292158]
[1742716279024,0.01,2010.4,2010.3,39.60682492]
[1742716279218,0.01,2010.4,2010.3,33.99789076]
[1742716279529,0.01,2010.4,2010.3,38.59789076]
[1742716280291,0.8289,2011.0,2010.9,5.52289]
[1742716280623,0.8239,2012.3,2011.3,5.7277]
[1742716280948,0.8239,2012.4,2011.9,8.52042]
[1742716281091,2.23690313,2012.0,2011.9,9.18308397]
[1742716281292,0.90243709,2012.0,2011.9,13.82308397]
[1742716281692,0.90243709,2012.0,2011.9,14.19712579]
[1742716282399,0.8239,2012.5,2012.1,4.96973]
[1742716282597,0.8239,2012.4,2012.3,5.51943]
[1742716282794,0.8239,2012.4,2012.3,10.86326603]
[1742716283107,0.8239,2012.6,2012.5,5.51881]
[1742716283303,0.8239,2012.6,2012.5,0.55]
[1742716283523,0.8239,2012.6,2012.3,5.34383603]
[1742716283692,6.12943917,2012.6,2012.4,0.65883603]
[1742716283896,5.79292,2012.5,2012.3,4.685]
[1742716284295,0.8239,2012.6,2012.4,0.65883603]
[1742716284496,5.79284,2012.5,2012.4,0.65883603]
[1742716284813,5.79358,2012.2,2012.1,31.038]
[1742716285014,9.37813789,2012.2,2012.1,31.038]
[1742716285794,9.37813789,2012.2,2012.1,26.292]
[1742716286010,1.900201,2012.2,2012.1,26.292]
[1742716286225,0.8239,2012.2,2012.1,26.292]
[1742716286627,0.8239,2012.2,2012.1,31.81193]
[1742716286936,0.8239,2012.4,2012.2,5.51946]
[1742716288243,0.8239,2012.4,2012.3,0.65113595]
[1742716288604,0.8239,2012.4,2012.3,6.17056595]
[1742716289139,0.85803485,2012.7,2012.5,4.9688]
[1742716289435,0.85803485,2012.7,2012.6,4.756]
[1742716289739,0.85803485,2012.7,2012.6,10.92582595]
[1742716289740,0.03413485,2012.7,2012.6,10.92582595]
[1742716290346,0.03413485,2012.7,2012.6,13.92582595]
[1742716290503,0.03413485,2012.7,2012.6,14.74582595]
[1742716290947,0.03413485,2012.7,2012.6,9.16982595]
[1742716291100,0.03413485,2012.7,2012.6,13.93982595]
[1742716291525,0.85893485,2012.7,2012.6,5.97113595]
[1742716292035,1.44170833,2012.7,2012.6,5.97113595]
[1742716292232,0.03413485,2012.7,2012.6,10.93982595]
[1742716293004,0.03413485,2012.7,2012.6,5.97113595]
[1742716293541,0.03413485,2012.7,2012.6,5.42113595]
[1742716294843,7.51084174,2012.7,2012.6,5.42113595]
[1742716295053,8.33564174,2012.7,2012.6,0.65113595]
[1742716295348,4.96894,2012.5,2012.4,4.779]